fUSD/lending_fUSD_20251017
["ID","MTS","AMOUNT","RATE_DAILY","PERIOD"]
[391667408,1760723472555,-150.0,0.00035,90]
[391667409,1760723472565,-4024.0,0.00035,120]
[391667410,1760723472574,-399.999999,0.00035,30]
[391667411,1760723472583,-179.97,0.00035,120]
[391667412,1760723472594,-562.96,0.00035,120]
[391667413,1760723472605,-518.4,0.00035,120]
[391667414,1760723472614,-547.78,0.00035,120]
[391667415,1760723472624,-2381.28,0.00035,120]
[391667416,1760723472634,-172.62,0.00035,120]
[391667417,1760723472644,-160.0,0.00035,120]
[391667418,1760723472653,-502.83,0.00035,120]
[391667419,1760723472667,-153.0,0.00035,120]
[391667420,1760723472677,-2372.8,0.00035,120]
[391667421,1760723472687,-1166.37,0.00035,120]
[391667422,1760723472696,-1261.1,0.00035,120]
[391667423,1760723472706,-531.95,0.00035,120]
[391667424,1760723472715,-151.0,0.00035,30]
[391667425,1760723472725,-151.0,0.00035,30]
[391667426,1760723472734,-151.0,0.00035,30]
[391667427,1760723472744,-2126.104239,0.00035,30]
[391667428,1760723472754,-2126.104239,0.00035,30]
[391667429,1760723472763,-242.434824,0.00035,30]
[391667430,1760723472773,-2126.104239,0.00035,30]
[391667431,1760723472783,-2126.104239,0.00035,30]
[391667432,1760723472792,-151.0,0.00035,30]
[391667433,1760723472801,-151.0,0.00035,30]
[391667434,1760723472811,-151.0,0.00035,30]
[391667435,1760723472821,-4206.947105,0.00035,30]
[391667436,1760723472831,-151.0,0.00035,30]
[391667437,1760723472840,-151.0,0.00035,30]
[391667438,1760723472850,-4206.947105,0.00035,30]
[391667439,1760723472860,-151.0,0.00035,30]
[391667440,1760723472870,-398.823526,0.00035,30]
[391667441,1760723472879,-4206.947105,0.00035,30]
[391667442,1760723472889,-151.0,0.00035,30]
[391667443,1760723472898,-398.823526,0.00035,30]
[391667444,1760723472908,-4206.947105,0.00035,30]
[391667445,1760723472917,-151.0,0.00035,30]
[391667446,1760723472926,-151.0,0.00035,30]
[391667447,1760723472936,-151.0,0.00035,30]
[391667448,1760723472946,-398.823526,0.00035,30]
[391667449,1760723472956,-151.0,0.00035,30]
[391667450,1760723472966,-398.823526,0.00035,30]
[391667451,1760723472975,-151.0,0.00035,30]
[391667452,1760723472985,-151.0,0.00035,30]
[391667453,1760723472994,-151.0,0.00035,30]
[391667454,1760723473003,-151.0,0.00035,30]
[391667455,1760723473013,-174.052081,0.00035,30]
[391667456,1760723473023,-151.0,0.00035,30]
[391667457,1760723473032,-264.585435,0.00035,30]
[391667458,1760723473042,-174.052081,0.00035,30]
[391667459,1760723473052,-151.0,0.00035,30]
[391667460,1760723473062,-264.585435,0.00035,30]
[391667461,1760723473071,-174.052081,0.00035,30]
[391667462,1760723473081,-264.585435,0.00035,30]
[391667463,1760723473091,-174.052081,0.00035,30]
[391667464,1760723473101,-264.585435,0.00035,30]
[391667465,1760723473112,-232.323283,0.00035,30]
[391667466,1760723473122,-232.323283,0.00035,30]
[391667467,1760723473132,-151.0,0.00035,30]
[391667468,1760723473142,-232.323283,0.00035,30]
[391667469,1760723473152,-232.323283,0.00035,30]
[391667470,1760723473161,-151.0,0.00035,30]
[391667471,1760723473171,-151.0,0.00035,30]
[391667472,1760723473181,-151.0,0.00035,30]
[391667473,1760723473191,-174.422103,0.00035,20]
[391667474,1760723473200,-174.422103,0.00035,20]
[391667475,1760723473210,-174.422103,0.00035,20]
[391667476,1760723473220,-151.0,0.00035,30]
[391667477,1760723473229,-174.422103,0.00035,20]
[391667478,1760723473239,-151.0,0.00035,30]
[391667479,1760723473249,-151.0,0.00035,30]
[391667480,1760723473259,-151.0,0.00035,30]
[391667481,1760723473268,-151.0,0.00035,30]
[391667482,1760723473278,-151.0,0.00035,30]
[391667483,1760723473288,-151.0,0.00035,30]
[391667484,1760723473297,-151.0,0.00035,30]
[391667485,1760723473307,-151.0,0.00035,30]
[391667486,1760723473317,-668.41790439,0.00035,2]
[391667487,1760723473327,-200.0,0.00035,120]
[391667488,1760723473336,-1000.0,0.00035,120]
[391667489,1760723473345,-300.0,0.00035,60]
[391667490,1760723473355,-150.0,0.00035011,7]
[391667491,1760723473364,-150.0,0.00035011,7]
[391667492,1760723473375,-827.18,0.00035014,2]
[391667493,1760723473385,-150.0,0.00035019,7]
[391667494,1760723473394,-200.0,0.00035019,60]
[391667495,1760723473403,-167.15721943,0.00035019,60]
[391667496,1760723473413,-500.0,0.00035019,60]
[391667497,1760723473422,-500.0,0.00035019,60]
[391667498,1760723473432,-160.64745741,0.00035019,60]
[391667499,1760723473441,-188.88797475,0.00035031,7]
[391667500,1760723473450,-2000.0,0.00035053,2]
[391667501,1760723473459,-150.0,0.00035056,7]
[391667502,1760723473469,-150.0,0.00035057,7]
[391667503,1760723473478,-150.0,0.00035063,7]
[391667504,1760723473487,-188.88797475,0.00035067,7]
[391667505,1760723473496,-1579.12,0.00035068,120]
[391667506,1760723473506,-150.0,0.0003507,7]
[391667507,1760723473515,-150.0,0.0003507,7]
[391667508,1760723473524,-150.0,0.0003507,7]
[391667509,1760723473534,-150.0,0.0003507,7]
[391667510,1760723473543,-495.83180917,0.00035073,17]
[391667511,1760723473552,-500.0,0.00035073,17]
[391667512,1760723473562,-524.3176766,0.00035073,17]
[391667513,1760723473571,-500.0,0.00035074,60]
[391667514,1760723473580,-500.0,0.00035074,60]
[391667515,1760723473590,-150.0,0.00035093,7]
[391667516,1760723473603,-150.0,0.00035093,7]
[391667517,1760723473612,-179.0,0.000351,120]
[391667518,1760723473622,-150.0,0.00035103,7]
[391667519,1760723473631,-188.88797475,0.00035103,7]
[391667520,1760723473642,-150.0,0.00035103,7]
[391667521,1760723473651,-500.0,0.00035129,60]
[391667522,1760723473661,-500.0,0.00035129,60]
[391667523,1760723473673,-150.0,0.00035129,7]
[391667524,1760723473682,-150.0,0.00035129,7]
[391667525,1760723473691,-150.0,0.00035135,7]
[391667526,1760723473700,-188.88797475,0.00035138,7]
[391667527,1760723473710,-150.0,0.00035141,7]
[391667528,1760723473719,-200.0,0.00035148,2]
[391667529,1760723473728,-150.0,0.00035149,7]
[391667530,1760723473738,-150.0,0.00035166,7]
[391667531,1760723473747,-188.88797475,0.00035174,7]
[391667532,1760723473756,-500.0,0.00035184,60]
[391667533,1760723473765,-500.0,0.00035184,60]
[391667534,1760723473775,-150.0,0.00035188,7]
[391667535,1760723473784,-150.0,0.00035195,7]
[391667536,1760723473793,-150.0,0.00035203,7]
[391667537,1760723473802,-150.0,0.00035203,7]
[391667538,1760723473812,-1093.1,0.00035206,2]
[391667539,1760723473821,-150.0,0.00035206,2]
[391667540,1760723473831,-150.0,0.00035208,7]
[391667541,1760723473840,-188.88797475,0.0003521,7]
[391667542,1760723473850,-1087.96992,0.0003523,2]
[391667543,1760723473861,-213.6994922,0.00035238,60]
[391667544,1760723473870,-500.0,0.00035238,60]
[391667545,1760723473879,-150.0,0.0003524,7]
[391667546,1760723473888,-150.0,0.00035241,7]
[391667547,1760723473898,-188.88797475,0.00035246,7]
[391667548,1760723473908,-150.0,0.00035248,7]
[391667549,1760723473918,-150.0,0.00035248,7]
[391667550,1760723473927,-150.0,0.00035248,7]
[391667551,1760723473936,-150.0,0.00035277,7]
[391667552,1760723473946,-150.0,0.0003528,7]
[391667553,1760723473955,-188.88797475,0.00035282,7]
[391667554,1760723473965,-150.0,0.00035283,7]
[391667555,1760723473974,-150.0,0.00035287,7]
[391667556,1760723473983,-500.0,0.00035293,60]
[391667557,1760723473993,-2500.0,0.000353,14]
[391667558,1760723474003,-150.0,0.00035307,7]
[391667559,1760723474012,-150.0,0.00035314,7]
[391667560,1760723474021,-150.0,0.00035314,7]
[391667561,1760723474031,-188.88797475,0.00035317,7]
[391667562,1760723474041,-150.0,0.00035333,7]
[391667563,1760723474051,-273.36267843,0.00035347,17]
[391667564,1760723474061,-150.0,0.00035348,60]
[391667565,1760723474070,-1900.0,0.00035348,7]
[391667566,1760723474079,-500.0,0.00035348,7]
[391667567,1760723474088,-150.0,0.00035351,7]
[391667568,1760723474098,-5377.53426996,0.00035351,2]
[391667569,1760723474111,-150.0,0.00035352,7]
[391667570,1760723474120,-188.88797475,0.00035353,7]
[391667571,1760723474130,-150.0,0.00035366,7]
[391667572,1760723474140,-150.0,0.00035379,7]
[391667573,1760723474150,-150.0,0.00035388,7]
[391667574,1760723474159,-188.88797475,0.00035389,7]
[391667575,1760723474168,-178.57677418,0.00035425,7]
[391667576,1760723474178,-199.58609739,0.00035425,7]
[391667577,1760723474187,-203.16471664,0.00035425,7]
[391667578,1760723474197,-188.88797475,0.00035425,7]
[391667579,1760723474207,-229.25316466,0.00035425,7]
[391667580,1760723474216,-191.4260712,0.00035425,7]
[391667581,1760723474226,-263.87544006,0.00035425,7]
[391667582,1760723474235,-158.22014003,0.00035425,7]
[391667583,1760723474245,-200.59171871,0.00035425,7]
[391667584,1760723474255,-241.14291792,0.00035425,7]
[391667585,1760723474264,-169.55956813,0.00035425,7]
[391667586,1760723474273,-153.00266309,0.00035425,7]
[391667587,1760723474283,-210.64365555,0.00035425,7]
[391667588,1760723474291,-240.42864337,0.00035425,7]
[391667589,1760723474301,-252.2175388,0.00035425,7]
[391667590,1760723474310,-230.85546025,0.00035425,7]
[391667591,1760723474319,-432777.8745,0.00035444,7]
[391667592,1760723474329,-286.25408731,0.00035451,15]
[391667593,1760723474339,-500.0,0.000356,120]
[391667594,1760723474349,-500.0,0.000356,120]
[391667595,1760723474361,-9034.75,0.00035616,5]
[391667596,1760723474370,-334.46377587,0.00035616,30]
[391667597,1760723474379,-727.29624766,0.00035647,120]
[391667598,1760723474389,-171.38,0.0003565,2]
[391667599,1760723474398,-1000.0,0.00035666,30]
[391667600,1760723474408,-401.19111454,0.00035692,2]
[391667601,1760723474417,-320.74051982,0.00035692,2]
[391667602,1760723474427,-747.8093786,0.00035695,2]
[391667603,1760723474436,-394.57666118,0.00035725,2]
[391667604,1760723474506,-150.0,0.00035738,120]
[391667605,1760723474516,-179.0,0.000358,120]
[391667606,1760723474526,-1093.1,0.00035826,2]
[391667607,1760723474536,-413.65,0.00035836,2]
[391667608,1760723474545,-375.94,0.00035836,2]
[391667609,1760723474554,-300.77,0.00035836,2]
[391667610,1760723474563,-300.27,0.00035836,2]
[391667611,1760723474572,-3691.60259701,0.0003585,60]
[391667612,1760723474581,-2535.09945336,0.000359,120]
[391667613,1760723474592,-2000.0,0.00035933,120]
[391667614,1760723474605,-150.0,0.00035978,120]
[391667615,1760723474614,-1000.0,0.00035999,30]
[391667616,1760723474623,-315.0,0.00036,120]
[391667617,1760723474633,-10676.78393844,0.00036,2]
[391667618,1760723474642,-50016.92475099,0.00036,6]
[391667619,1760723474651,-1000.0,0.00036,2]
[391667620,1760723474661,-10000.0,0.00036,2]
[391667621,1760723474671,-177.66904773,0.00036,120]
[391667622,1760723474680,-200.0,0.00036,120]
[391667623,1760723474690,-400.0,0.00036,120]
[391667624,1760723474699,-1294.0,0.00036,2]
[391667625,1760723474708,-153.0,0.00036,120]
[391667626,1760723474717,-2000.0,0.00036053,2]
[391667627,1760723474727,-2050.0,0.00036073,2]
[391667628,1760723474736,-1267.0,0.00036073,2]
[391667629,1760723474745,-3408.0,0.00036073,2]
[391667630,1760723474755,-749.0,0.00036073,2]
[391667631,1760723474764,-1310.0,0.00036073,2]
[391667632,1760723474772,-605.0,0.00036073,2]
[391667633,1760723474781,-571.0,0.00036073,2]
[391667634,1760723474791,-1589.0,0.00036073,2]
[391667635,1760723474799,-1183.0,0.00036073,2]
[391667636,1760723474809,-902.0,0.00036073,2]
[391667637,1760723474818,-816.0,0.00036073,2]
[391667638,1760723474828,-3356.0,0.00036073,2]
[391667639,1760723474838,-557.0,0.00036073,2]
[391667640,1760723474847,-1579.12,0.00036164,120]
[391667641,1760723474857,-500.0,0.0003617,7]
[391667642,1760723474867,-600.0,0.0003617,7]
[391667643,1760723474876,-150.0,0.00036355,120]
[391667644,1760723474885,-218.16600176,0.00036367,120]
[391667645,1760723474895,-218.31991417,0.00036367,120]
[391667646,1760723474905,-150.0,0.00036383,2]
[391667647,1760723474914,-150.0,0.00036383,2]
[391667648,1760723474923,-150.0,0.00036383,2]
[391667649,1760723474932,-150.0,0.00036383,2]
[391667650,1760723474941,-150.0,0.00036384,2]
[391667651,1760723474951,-2680.44359292,0.000365,120]
[391667652,1760723474960,-179.0,0.000365,120]
[391667653,1760723474969,-1091.0,0.0003654,5]
[391667654,1760723474979,-413.65,0.00036648,2]
[391667655,1760723474988,-413.65,0.00036648,2]
[391667656,1760723474997,-413.65,0.00036648,2]
[391667657,1760723475007,-827.3,0.00036648,2]
[391667658,1760723475016,-413.65,0.00036648,2]
[391667659,1760723475025,-1086.33,0.00036648,2]
[391667660,1760723475035,-826.14,0.00036648,2]
[391667661,1760723475045,-166.22,0.00036651,2]
[391667662,1760723475054,-150.0,0.00036651,2]
[391667663,1760723475064,-546.7,0.00036651,2]
[391667664,1760723475073,-179.11,0.00036651,2]
[391667665,1760723475083,-150.0,0.00036651,2]
[391667666,1760723475092,-546.7,0.00036651,2]
[391667667,1760723475102,-150.0,0.00036651,2]
[391667668,1760723475112,-546.7,0.00036651,2]
[391667669,1760723475122,-150.0,0.00036651,2]
[391667670,1760723475131,-546.06,0.00036651,2]
[391667671,1760723475141,-1000.0,0.00036666,30]
[391667672,1760723475150,-1612.58918486,0.000367,120]
[391667673,1760723475159,-474.66,0.00036763,2]
[391667674,1760723475169,-1441.91,0.00036763,2]
[391667675,1760723475178,-1503.25,0.00036763,2]
[391667676,1760723475187,-162.43040712,0.00036766,9]
[391667677,1760723475197,-345.774389,0.00036799,120]
[391667678,1760723475206,-6998.66885423,0.000368,60]
[391667679,1760723475216,-5000.0,0.000369,120]
[391667680,1760723475225,-55555.0,0.000369,30]
[391667681,1760723475234,-2300.0,0.000369,13]
[391667682,1760723475244,-546.7,0.000369,2]
[391667683,1760723475253,-413.53,0.000369,2]
[391667684,1760723475263,-546.7,0.000369,2]
[391667685,1760723475272,-546.25,0.000369,2]
[391667686,1760723475281,-168.24,0.000369,2]
[391667687,1760723475291,-176.05,0.000369,2]
[391667688,1760723475300,-150.66,0.000369,2]
[391667689,1760723475309,-1199.37,0.000369,2]
[391667690,1760723475318,-13884.8184047,0.0003691,2]
[391667691,1760723475327,-1466.34,0.00036972,120]
[391667692,1760723475336,-445.0,0.00036986,90]
[391667693,1760723475346,-500.0,0.00036992,7]
[391667694,1760723475355,-1900.0,0.00036992,7]
[391667695,1760723475364,-10000.0,0.00037,2]
[391667696,1760723475374,-1217.84385978,0.00037,30]
[391667697,1760723475382,-200.0,0.00037,120]
[391667698,1760723475392,-300.0,0.00037,120]
[391667699,1760723475401,-1200.0,0.00037,120]
[391667700,1760723475410,-8436.0,0.00037,120]
[391667701,1760723475419,-12567.0,0.00037,120]
[391667702,1760723475428,-1000.0,0.00037,2]
[391667703,1760723475438,-725.14,0.00037,2]
[391667704,1760723475447,-1000.0,0.00037,2]
[391667705,1760723475456,-723.93,0.00037,30]
[391667706,1760723475465,-1000.0,0.00037,2]
[391667707,1760723475475,-1000.0,0.00037,2]
[391667708,1760723475484,-1000.0,0.00037,2]
[391667709,1760723475493,-1000.0,0.00037,2]
[391667710,1760723475503,-1000.0,0.00037,2]
[391667711,1760723475512,-1000.0,0.00037,2]
[391667712,1760723475521,-1000.0,0.00037,2]
[391667713,1760723475531,-1000.0,0.00037,2]
[391667714,1760723475540,-153.0,0.00037,120]
[391667715,1760723475549,-5050.0,0.00037,117]
[391667716,1760723475558,-2839.37698228,0.00037,120]
[391667717,1760723475568,-2000.0,0.00037053,2]
[391667718,1760723475577,-416.03518578,0.00037061,2]
[391667719,1760723475586,-332.60791905,0.00037061,2]
[391667720,1760723475598,-2000.0,0.00037067,120]
[391667721,1760723475609,-179.0,0.000372,120]
[391667722,1760723475618,-3121.16140561,0.00037212,120]
[391667723,1760723475627,-1579.12,0.0003726,120]
[391667724,1760723475638,-206.39275092,0.0003726,14]
[391667725,1760723475648,-286.25408731,0.00037267,15]
[391667726,1760723475657,-170799.31961973,0.0003739,14]
[391667727,1760723475666,-25773.36757976,0.0003739,14]
[391667728,1760723475678,-151.0,0.00037441,14]
[391667729,1760723475687,-360648.2287,0.00037444,7]
[391667730,1760723475700,-151.0,0.00037444,120]
[391667731,1760723475709,-151.0,0.00037444,120]
[391667732,1760723475718,-151.0,0.00037444,120]
[391667733,1760723475728,-151.0,0.00037444,120]
[391667734,1760723475736,-151.0,0.00037444,120]
[391667735,1760723475746,-151.0,0.00037444,120]
[391667736,1760723475755,-156.80697,0.00037444,120]
[391667737,1760723475765,-151.0,0.00037444,120]
[391667738,1760723475774,-152.154125,0.00037444,120]
[391667739,1760723475783,-151.0,0.00037444,120]
[391667740,1760723475793,-151.0,0.00037444,120]
[391667741,1760723475802,-151.0,0.00037444,120]
[391667742,1760723475811,-151.0,0.00037444,120]
[391667743,1760723475821,-151.0,0.00037444,60]
[391667744,1760723475830,-151.0,0.00037444,120]
[391667745,1760723475839,-151.0,0.00037444,120]
[391667746,1760723475848,-151.0,0.00037444,120]
[391667747,1760723475858,-151.0,0.00037444,120]
[391667748,1760723475868,-151.0,0.00037444,120]
[391667749,1760723475877,-151.578571,0.00037444,120]
[391667750,1760723475887,-151.0,0.00037444,120]
[391667751,1760723475897,-151.0,0.00037444,120]
[391667752,1760723475906,-151.0,0.00037444,120]
[391667753,1760723475916,-151.0,0.00037444,120]
[391667754,1760723475926,-151.0,0.00037444,120]
[391667755,1760723475935,-151.0,0.00037444,120]
[391667756,1760723475945,-284.047684,0.00037444,120]
[391667757,1760723475955,-151.0,0.00037444,120]
[391667758,1760723475964,-151.0,0.00037444,30]
[391667759,1760723475974,-151.0,0.00037444,120]
[391667760,1760723475984,-151.0,0.00037444,14]
[391667761,1760723475993,-151.0,0.00037444,120]
[391667762,1760723476003,-151.0,0.00037444,120]
[391667763,1760723476012,-151.0,0.00037444,120]
[391667764,1760723476021,-151.0,0.00037444,120]
[391667765,1760723476031,-151.0,0.00037444,120]
[391667766,1760723476040,-151.0,0.00037444,120]
[391667767,1760723476049,-151.0,0.00037444,120]
[391667768,1760723476059,-151.0,0.00037444,120]
[391667769,1760723476069,-151.0,0.00037444,120]
[391667770,1760723476079,-151.0,0.00037444,120]
[391667771,1760723476088,-151.0,0.00037444,120]
[391667772,1760723476098,-151.0,0.00037444,120]
[391667773,1760723476109,-151.0,0.00037444,120]
[391667774,1760723476118,-151.0,0.00037444,120]
[391667775,1760723476128,-151.0,0.00037444,120]
[391667776,1760723476137,-151.0,0.00037444,120]
[391667777,1760723476147,-151.0,0.00037444,120]
[391667778,1760723476156,-151.0,0.00037444,120]
[391667779,1760723476165,-151.0,0.00037444,120]
[391667780,1760723476175,-161.55748726,0.00037444,120]
[391667781,1760723476184,-151.0,0.00037444,30]
[391667782,1760723476194,-151.0,0.00037444,120]
[391667783,1760723476204,-151.0,0.00037444,120]
[391667784,1760723476214,-151.0,0.00037444,120]
[391667785,1760723476223,-151.0,0.00037444,120]
[391667786,1760723476233,-151.0,0.00037444,120]
[391667787,1760723476242,-212.18527,0.00037444,120]
[391667788,1760723476252,-151.0,0.00037444,120]
[391667789,1760723476261,-151.0,0.00037444,120]
[391667790,1760723476270,-151.0,0.00037444,120]
[391667791,1760723476280,-151.0,0.00037444,120]
[391667792,1760723476290,-151.0,0.00037444,120]
[391667793,1760723476299,-151.0,0.00037444,120]
[391667794,1760723476308,-151.0,0.00037444,120]
[391667795,1760723476318,-275.636163,0.00037444,120]
[391667796,1760723476327,-151.0,0.00037444,120]
[391667797,1760723476336,-203.832295,0.00037444,120]
[391667798,1760723476345,-151.0,0.00037444,120]
[391667799,1760723476354,-151.0,0.00037444,120]
[391667800,1760723476363,-151.0,0.00037444,120]
[391667801,1760723476372,-151.0,0.00037444,120]
[391667802,1760723476382,-2782.82797019,0.00037485,120]
[391667803,1760723476391,-151.0,0.00037485,15]
[391667804,1760723476401,-151.0,0.00037485,15]
[391667805,1760723476410,-151.0,0.00037485,120]
[391667806,1760723476419,-151.0,0.00037485,120]
[391667807,1760723476428,-151.0,0.00037485,120]
[391667808,1760723476437,-151.0,0.00037485,120]
[391667809,1760723476446,-151.0,0.00037485,120]
[391667810,1760723476456,-151.0,0.00037485,120]
[391667811,1760723476465,-200.0,0.000375,120]
[391667812,1760723476475,-8098.0,0.000375,120]
[391667813,1760723476484,-900.0,0.00037534,37]
[391667814,1760723476494,-336.48,0.00037541,2]
[391667815,1760723476503,-176.05,0.00037541,2]
[391667816,1760723476512,-1390.14,0.00037541,2]
[391667817,1760723476521,-478.72,0.00037541,2]
[391667818,1760723476531,-1520.59,0.00037541,2]
[391667819,1760723476541,-312.72,0.00037541,2]
[391667820,1760723476550,-300.0,0.00037541,2]
[391667821,1760723476560,-150.0,0.00037542,2]
[391667822,1760723476569,-150.0,0.00037542,2]
[391667823,1760723476578,-150.0,0.00037542,2]
[391667824,1760723476588,-150.0,0.00037542,2]
[391667825,1760723476601,-150.0,0.00037542,2]
[391667826,1760723476611,-4258.64468133,0.0003759,2]
[391667827,1760723476620,-1000.0,0.00037666,30]
[391667828,1760723476630,-168.24,0.00037722,2]
[391667829,1760723476639,-1199.37,0.00037722,2]
[391667830,1760723476649,-1199.37,0.00037722,2]
[391667831,1760723476658,-168.24,0.00037722,2]
[391667832,1760723476668,-1199.37,0.00037722,2]
[391667833,1760723476678,-168.24,0.00037722,2]
[391667834,1760723476687,-1199.37,0.00037722,2]
[391667835,1760723476697,-168.24,0.00037722,2]
[391667836,1760723476706,-168.24,0.00037722,2]
[391667837,1760723476715,-2398.74,0.00037722,2]
[391667838,1760723476724,-150.0,0.00037722,2]
[391667839,1760723476734,-175.82,0.00037722,2]
[391667840,1760723476743,-484.85,0.00037722,2]
[391667841,1760723476752,-300.0,0.00037722,2]
[391667842,1760723476761,-500.0,0.0003777,15]
[391667843,1760723476771,-1143.06467914,0.000378,2]
[391667844,1760723476781,-709.9,0.00037808,60]
[391667845,1760723476790,-202.077317,0.00037808,120]
[391667846,1760723476799,-202.077317,0.00037808,120]
[391667847,1760723476809,-202.077317,0.00037808,120]
[391667848,1760723476818,-396.241571,0.00037808,120]
[391667849,1760723476827,-151.0,0.00037808,120]
[391667850,1760723476837,-396.241571,0.00037808,120]
[391667851,1760723476846,-202.077317,0.00037808,120]
[391667852,1760723476855,-151.0,0.00037808,120]
[391667853,1760723476865,-396.241571,0.00037808,120]
[391667854,1760723476874,-359.033648,0.00037808,120]
[391667855,1760723476884,-151.0,0.00037808,120]
[391667856,1760723476893,-396.241571,0.00037808,120]
[391667857,1760723476902,-359.033648,0.00037808,120]
[391667858,1760723476911,-359.033648,0.00037808,120]
[391667859,1760723476921,-151.0,0.00037808,120]
[391667860,1760723476931,-359.033648,0.00037808,120]
[391667861,1760723476940,-151.0,0.00037808,120]
[391667862,1760723476949,-151.0,0.00037808,120]
[391667863,1760723476959,-151.0,0.00037808,120]
[391667864,1760723476968,-151.0,0.00037808,120]
[391667865,1760723476978,-151.0,0.00037808,120]
[391667866,1760723476988,-151.0,0.00037808,120]
[391667867,1760723476998,-151.0,0.00037808,120]
[391667868,1760723477007,-151.0,0.00037808,120]
[391667869,1760723477017,-151.0,0.00037808,120]
[391667870,1760723477027,-179.012348,0.00037808,120]
[391667871,1760723477036,-600.0,0.00037814,7]
[391667872,1760723477046,-709.91,0.00037839,80]
[391667873,1760723477056,-556.0,0.00037869,120]
[391667874,1760723477066,-709.9,0.00037869,100]
[391667875,1760723477076,-151.0,0.00037869,30]
[391667876,1760723477085,-151.0,0.00037869,120]
[391667877,1760723477095,-151.0,0.00037869,120]
[391667878,1760723477104,-151.0,0.00037869,60]
[391667879,1760723477117,-151.0,0.00037869,120]
[391667880,1760723477126,-751.682811,0.00037869,120]
[391667881,1760723477135,-751.682811,0.00037869,120]
[391667882,1760723477144,-199.096247,0.00037869,120]
[391667883,1760723477154,-751.682811,0.00037869,120]
[391667884,1760723477164,-751.682811,0.00037869,120]
[391667885,1760723477174,-151.0,0.00037869,120]
[391667886,1760723477184,-151.0,0.00037869,120]
[391667887,1760723477194,-151.0,0.00037869,120]
[391667888,1760723477203,-151.0,0.00037869,120]
[391667889,1760723477213,-151.0,0.00037869,120]
[391667890,1760723477223,-151.0,0.00037869,120]
[391667891,1760723477234,-151.0,0.00037869,120]
[391667892,1760723477244,-151.0,0.00037869,120]
[391667893,1760723477254,-151.0,0.00037869,120]
[391667894,1760723477266,-151.0,0.00037869,120]
[391667895,1760723477275,-292.78168903,0.00037869,120]
[391667896,1760723477287,-151.0,0.00037869,120]
[391667897,1760723477297,-151.0,0.00037869,120]
[391667898,1760723477307,-615.409153,0.00037869,120]
[391667899,1760723477317,-151.0,0.00037869,120]
[391667900,1760723477327,-615.409153,0.00037869,120]
[391667901,1760723477336,-615.409153,0.00037869,120]
[391667902,1760723477347,-615.409153,0.00037869,120]
[391667903,1760723477357,-545.756694,0.00037869,120]
[391667904,1760723477372,-545.756694,0.00037869,120]
[391667905,1760723477382,-545.756694,0.00037869,120]
[391667906,1760723477392,-545.756694,0.00037869,120]
[391667907,1760723477402,-714.330354,0.00037869,120]